fUST/lending_fUST_20240824
["ID","MTS","AMOUNT","RATE_DAILY","PERIOD"]
[335726651,1724465441266,-500.0,0.00013698,2]
[335726653,1724465441276,-520.97451385,0.00013698,2]
[335726655,1724465441286,-500.0,0.00013698,2]
[335726657,1724465441295,-468.86601935,0.00013698,2]
[335726659,1724465441304,-500.0,0.00013698,2]
[335726661,1724465441314,-601.03,0.00013698,2]
[335726663,1724465441323,-500.0,0.00013698,2]
[335726665,1724465441331,-208.28245632,0.00013698,2]
[335726667,1724465441341,-1359.57,0.00013698,2]
[335726669,1724465441352,-500.0,0.00013698,2]
[335726672,1724465441363,-754.85,0.00013698,2]
[335726674,1724465441373,-500.0,0.00013698,2]
[335726676,1724465441383,-500.0,0.00013698,2]
[335726678,1724465441393,-500.0,0.00013698,2]
[335726680,1724465441402,-500.0,0.00013698,2]
[335726682,1724465441411,-500.0,0.00013698,2]
[335726684,1724465441420,-500.0,0.00013698,2]
[335726686,1724465441430,-193.80537047,0.00013698,2]
[335726688,1724465441439,-500.0,0.00013698,2]
[335726690,1724465441448,-555.01,0.00013698,2]
[335726692,1724465441457,-773.3,0.00013698,2]
[335726694,1724465441467,-500.0,0.00013698,2]
[335726696,1724465441476,-500.0,0.00013698,2]
[335726698,1724465441485,-501.54686121,0.00013698,2]
[335726699,1724465441494,-500.0,0.00013698,2]
[335726701,1724465441503,-500.0,0.00013698,2]
[335726703,1724465441513,-500.0,0.00013698,2]
[335726705,1724465441522,-500.0,0.00013698,2]
[335726708,1724465441534,-500.0,0.00013698,2]
[335726710,1724465441543,-500.0,0.00013698,2]
[335726712,1724465441553,-500.0,0.00013698,2]
[335726714,1724465441562,-500.0,0.00013698,2]
[335726716,1724465441571,-500.0,0.00013698,2]
[335726718,1724465441580,-500.0,0.00013698,2]
[335726720,1724465441590,-500.0,0.00013698,2]
[335726722,1724465441599,-1044.57,0.00013698,2]
[335726724,1724465441609,-500.0,0.00013698,2]
[335726726,1724465441617,-500.0,0.00013698,2]
[335726728,1724465441626,-500.0,0.00013698,2]
[335726730,1724465441636,-725.06,0.00013698,2]
[335726732,1724465441646,-500.08708123,0.00013698,2]
[335726734,1724465441658,-500.0,0.00013698,2]
[335726736,1724465441667,-500.0,0.00013698,2]
[335726738,1724465441677,-793.88,0.00013698,2]
[335726740,1724465441686,-500.0,0.00013698,2]
[335726742,1724465441696,-500.0,0.00013698,2]
[335726744,1724465441705,-500.0,0.00013698,2]
[335726746,1724465441714,-198.34228826,0.00013698,2]
[335726748,1724465441723,-500.0,0.00013698,2]
[335726750,1724465441732,-500.0,0.00013698,2]
[335726751,1724465441742,-1092.86,0.00013698,2]
[335726753,1724465441751,-655.31,0.00013698,2]
[335726755,1724465441760,-557.48915193,0.00013698,2]
[335726757,1724465441770,-500.0,0.00013698,2]
[335726759,1724465441780,-500.0,0.00013698,2]
[335726761,1724465441789,-286.58702457,0.00013698,2]
[335726763,1724465441799,-500.0,0.00013698,2]
[335726765,1724465441808,-500.71268256,0.00013698,2]
[335726767,1724465441818,-500.0,0.00013698,2]
[335726769,1724465441827,-500.0,0.00013698,2]
[335726772,1724465441836,-500.0,0.00013698,2]
[335726774,1724465441845,-607.28,0.00013698,2]
[335726776,1724465441855,-635.98,0.00013698,2]
[335726778,1724465441864,-500.0,0.00013698,2]
[335726780,1724465441873,-500.0,0.00013698,2]
[335726782,1724465441882,-500.0,0.00013698,2]
[335726784,1724465441892,-971.71,0.00013698,2]
[335726786,1724465441902,-501.38933766,0.00013698,2]
[335726788,1724465441911,-500.0,0.00013698,2]
[335726790,1724465441920,-500.0,0.00013698,2]
[335726792,1724465441930,-500.0,0.00013698,2]
[335726794,1724465441938,-500.0,0.00013698,2]
[335726796,1724465441947,-500.0,0.00013698,2]
[335726798,1724465441957,-840.87,0.00013698,2]
[335726800,1724465441967,-500.0,0.00013698,2]
[335726802,1724465441977,-500.0,0.00013698,2]
[335726804,1724465441988,-641.58,0.00013698,2]
[335726806,1724465441997,-500.0,0.00013698,2]
[335726808,1724465442007,-500.0,0.00013698,2]
[335726810,1724465442016,-591.82,0.00013698,2]
[335726812,1724465442025,-150.0,0.00013698,2]
[335726814,1724465442034,-500.0,0.00013698,2]
[335726816,1724465442043,-500.0,0.00013698,2]
[335726818,1724465442053,-500.0,0.00013698,2]
[335726820,1724465442062,-339.20726596,0.00013698,2]
[335726822,1724465442071,-500.0,0.00013698,2]
[335726824,1724465442081,-2236.46,0.00013698,2]
[335726826,1724465442089,-500.0,0.00013698,2]
[335726828,1724465442099,-500.0,0.00013698,2]
[335726830,1724465442109,-500.0,0.00013698,2]
[335726832,1724465442119,-502.74548938,0.00013698,2]
[335726834,1724465442128,-500.0,0.00013698,2]
[335726836,1724465442146,-500.0,0.00013698,2]
[335726838,1724465442159,-2903.52,0.00013698,2]
[335726840,1724465442168,-500.0,0.00013698,2]
[335726842,1724465442177,-500.0,0.00013698,2]
[335726844,1724465442185,-500.0,0.00013698,2]
[335726846,1724465442195,-500.0,0.00013698,2]
[335726848,1724465442204,-500.0,0.00013698,2]
[335726850,1724465442213,-500.0,0.00013698,2]
[335726852,1724465442223,-500.0,0.00013698,2]
[335726854,1724465442232,-580.97,0.00013698,2]
[335726855,1724465442242,-500.0,0.00013698,2]
[335726857,1724465442251,-500.0,0.00013698,2]
[335726859,1724465442261,-500.0,0.00013698,2]
[335726861,1724465442271,-500.0,0.00013698,2]
[335726863,1724465442280,-500.0,0.00013698,2]
[335726865,1724465442289,-500.0,0.00013698,2]
[335726867,1724465442300,-539.63,0.00013698,2]
[335726869,1724465442309,-953.85,0.00013698,2]
[335726871,1724465442319,-500.0,0.00013698,2]
[335726873,1724465442328,-500.0,0.00013698,2]
[335726875,1724465442338,-523.45,0.00013698,2]
[335726877,1724465442348,-809.26,0.00013698,2]
[335726879,1724465442358,-172.52369908,0.00013698,2]
[335726881,1724465442367,-500.0,0.00013698,2]
[335726883,1724465442376,-318.6461371,0.00013698,2]
[335726885,1724465442389,-1247.93,0.00013698,2]
[335726886,1724465442398,-500.0,0.00013698,2]
[335726887,1724465442407,-500.0,0.00013698,2]
[335726888,1724465442416,-822.53,0.00013698,2]
[335726889,1724465442425,-828.51,0.00013698,2]
[335726890,1724465442435,-500.0,0.00013698,2]
[335726891,1724465442444,-568.69,0.00013698,2]
[335726892,1724465442453,-688.49,0.00013698,2]
[335726893,1724465442463,-500.0,0.00013698,2]
[335726894,1724465442472,-584.75,0.00013698,2]
[335726895,1724465442482,-532.37,0.00013698,2]
[335726896,1724465442491,-503.52550476,0.00013698,2]
[335726897,1724465442500,-500.0,0.00013698,2]
[335726898,1724465442510,-500.0,0.00013698,2]
[335726899,1724465442519,-500.0,0.00013698,2]
[335726900,1724465442529,-500.0,0.00013698,2]
[335726901,1724465442538,-500.0,0.00013698,2]
[335726902,1724465442547,-500.0,0.00013698,2]
[335726903,1724465442557,-500.0,0.00013698,2]
[335726904,1724465442566,-500.0,0.00013698,2]
[335726905,1724465442575,-500.0,0.00013698,2]
[335726906,1724465442585,-500.0,0.00013698,2]
[335726907,1724465442594,-500.0,0.00013698,2]
[335726908,1724465442603,-500.0,0.00013698,2]
[335726909,1724465442613,-234.46454106,0.00013698,2]
[335726910,1724465442622,-500.0,0.00013698,2]
[335726911,1724465442633,-500.0,0.00013698,2]
[335726912,1724465442642,-500.0,0.00013698,2]
[335726913,1724465442652,-500.0,0.00013698,2]
[335726914,1724465442662,-899.95,0.00013698,2]
[335726915,1724465442671,-585.29,0.00013698,2]
[335726916,1724465442680,-500.0,0.00013698,2]
[335726917,1724465442689,-500.0,0.00013698,2]
[335726918,1724465442699,-1010.2,0.00013698,2]
[335726919,1724465442709,-500.0,0.00013698,2]
[335726920,1724465442719,-723.25,0.00013698,2]
[335726921,1724465442728,-500.0,0.00013698,2]
[335726922,1724465442738,-500.0,0.00013698,2]
[335726923,1724465442747,-763.38,0.00013698,2]
[335726924,1724465442756,-500.0,0.00013698,2]
[335726925,1724465442766,-500.0,0.00013698,2]
[335726926,1724465442775,-500.0,0.00013698,2]
[335726927,1724465442786,-500.0,0.00013698,2]
[335726928,1724465442795,-500.0,0.00013698,2]
[335726929,1724465442804,-500.0,0.00013698,2]
[335726930,1724465442814,-820.32,0.00013698,2]
[335726931,1724465442823,-500.0,0.00013698,2]
[335726932,1724465442832,-500.0,0.00013698,2]
[335726933,1724465442841,-500.0,0.00013698,2]
[335726934,1724465442850,-416.90936469,0.00013698,2]
[335726935,1724465442860,-500.0,0.00013698,2]
[335726936,1724465442869,-2331.63,0.00013698,2]
[335726937,1724465442879,-500.56863178,0.00013698,2]
[335726938,1724465442890,-500.0,0.00013698,2]
[335726939,1724465442899,-500.0,0.00013698,2]
[335726940,1724465442908,-500.0,0.00013698,2]
[335726941,1724465442917,-500.0,0.00013698,2]
[335726942,1724465442927,-500.0,0.00013698,2]
[335726943,1724465442936,-1108.73,0.00013698,2]
[335726944,1724465442945,-500.0,0.00013698,2]
[335726945,1724465442954,-500.0,0.00013698,2]
[335726946,1724465442963,-500.0,0.00013698,2]
[335726947,1724465442973,-500.0,0.00013698,2]
[335726948,1724465442987,-500.0,0.00013698,2]
[335726949,1724465442997,-500.0,0.00013698,2]
[335726950,1724465443006,-737.64,0.00013698,2]
[335726951,1724465443017,-500.0,0.00013698,2]
[335726952,1724465443026,-500.0,0.00013698,2]
[335726953,1724465443035,-500.0,0.00013698,2]
[335726954,1724465443045,-1472.06,0.00013698,2]
[335726955,1724465443055,-537.44,0.00013698,2]
[335726956,1724465443064,-500.0,0.00013698,2]
[335726957,1724465443074,-500.0,0.00013698,2]
[335726958,1724465443083,-500.0,0.00013698,2]
[335726959,1724465443093,-500.0,0.00013698,2]
[335726960,1724465443102,-881.74,0.00013698,2]
[335726961,1724465443111,-501.04688367,0.00013698,2]
[335726962,1724465443121,-317.59539575,0.00013698,2]
[335726963,1724465443130,-1274.24,0.00013698,2]
[335726964,1724465443141,-500.0,0.00013698,2]
[335726965,1724465443150,-500.0,0.00013698,2]
[335726966,1724465443159,-827.42,0.00013698,2]
[335726967,1724465443168,-500.0,0.00013698,2]
[335726968,1724465443177,-560.87,0.00013698,2]
[335726970,1724465443186,-500.0,0.00013698,2]
[335726971,1724465443196,-500.0,0.00013698,2]
[335726973,1724465443205,-513.09,0.00013698,2]
[335726975,1724465443214,-500.0,0.00013698,2]
[335726985,1724465443367,-1023.05,0.00013698,2]
[335726986,1724465443376,-1237.94,0.00013698,2]
[335726987,1724465443387,-500.0,0.00013698,2]
[335726988,1724465443396,-500.0,0.00013698,2]
[335726989,1724465443405,-168.56645819,0.00013698,2]
[335726990,1724465443415,-543.43,0.00013698,2]
[335726992,1724465443424,-500.0,0.00013698,2]
[335726994,1724465443433,-500.0,0.00013698,2]
[335726995,1724465443442,-2195.09,0.00013698,2]
[335726996,1724465443452,-675.72,0.00013698,2]
[335726997,1724465443461,-549.44,0.00013698,2]
[335726998,1724465443470,-500.0,0.00013698,2]
[335726999,1724465443480,-500.0,0.00013698,2]
[335727000,1724465443489,-500.0,0.00013698,2]
[335727001,1724465443498,-1094.59,0.00013698,2]
[335727003,1724465443507,-433.15344614,0.00013698,2]
[335727005,1724465443516,-500.0,0.00013698,2]
[335727007,1724465443525,-500.0,0.00013698,2]
[335727009,1724465443534,-500.0,0.00013698,2]
[335727011,1724465443544,-500.0,0.00013698,2]
[335727013,1724465443553,-500.0,0.00013698,2]
[335727015,1724465443563,-500.0,0.00013698,2]
[335727017,1724465443573,-500.0,0.00013698,2]
[335727019,1724465443582,-853.04,0.00013698,2]
[335727021,1724465443592,-628.26,0.00013698,2]
[335727023,1724465443601,-500.0,0.00013698,2]
[335727025,1724465443610,-953.81,0.00013698,2]
[335727027,1724465443619,-577.56,0.00013698,2]
[335727029,1724465443628,-531.77767104,0.00013698,2]
[335727031,1724465443639,-513.99772868,0.00013698,2]
[335727033,1724465443649,-500.0,0.00013698,2]
[335727035,1724465443658,-500.0,0.00013698,2]
[335727037,1724465443667,-942.91,0.00013698,2]
[335727039,1724465443676,-1414.6,0.00013698,2]
[335727040,1724465443686,-500.0,0.00013698,2]
[335727043,1724465443695,-500.0,0.00013698,2]
[335727045,1724465443705,-500.0,0.00013698,2]
[335727047,1724465443714,-500.0,0.00013698,2]
[335727049,1724465443724,-500.0,0.00013698,2]
[335727051,1724465443734,-500.0,0.00013698,2]
[335727052,1724465443743,-500.0,0.00013698,2]
[335727053,1724465443752,-500.0,0.00013698,2]
[335727054,1724465443762,-267.26582215,0.00013698,2]
[335727055,1724465443771,-500.0,0.00013698,2]
[335727056,1724465443780,-2838.38,0.00013698,2]
[335727057,1724465443790,-500.0,0.00013698,2]
[335727058,1724465443799,-500.0,0.00013698,2]
[335727059,1724465443808,-500.0,0.00013698,2]
[335727060,1724465443817,-500.0,0.00013698,2]
[335727061,1724465443827,-500.0,0.00013698,2]
[335727062,1724465443836,-500.0,0.00013698,2]
[335727063,1724465443846,-500.0,0.00013698,2]
[335727064,1724465443855,-500.0,0.00013698,2]
[335727065,1724465443864,-500.0,0.00013698,2]
[335727066,1724465443873,-500.0,0.00013698,2]
[335727067,1724465443883,-500.0,0.00013698,2]
[335727068,1724465443892,-500.0,0.00013698,2]
[335727070,1724465443901,-259.66926664,0.00013698,2]
[335727073,1724465443911,-500.0,0.00013698,2]
[335727075,1724465443920,-500.36556423,0.00013698,2]
[335727077,1724465443930,-5336.22,0.00013698,2]
[335727079,1724465443939,-1070.39,0.00013698,2]
[335727081,1724465443949,-566.24,0.00013698,2]
[335727083,1724465443959,-500.0,0.00013698,2]
[335727085,1724465443968,-645.85,0.00013698,2]
[335727087,1724465443978,-503.63131458,0.00013698,2]
[335727089,1724465443991,-500.0,0.00013698,2]
[335727091,1724465444000,-1520.76,0.00013698,2]
[335727093,1724465444009,-600.75,0.00013698,2]
[335727095,1724465444018,-755.79,0.00013698,2]
[335727097,1724465444030,-244.47231644,0.00013698,2]
[335727099,1724465444039,-181.13607056,0.00013698,2]
[335727101,1724465444049,-852.42,0.00013698,2]
[335727102,1724465444059,-831.41,0.00013698,2]
[335727104,1724465444069,-500.0,0.00013698,2]
[335727106,1724465444079,-500.0,0.00013698,2]
[335727108,1724465444089,-578.52,0.00013698,2]
[335727110,1724465444098,-500.0,0.00013698,2]
[335727112,1724465444107,-978.69,0.00013698,2]
[335727114,1724465444117,-500.0,0.00013698,2]
[335727116,1724465444127,-500.0,0.00013698,2]
[335727118,1724465444136,-930.78,0.00013698,2]
[335727120,1724465444145,-500.0,0.00013698,2]
[335727122,1724465444155,-201.45629443,0.00013698,2]
[335727124,1724465444164,-721.17,0.00013698,2]
[335727126,1724465444174,-500.0,0.00013698,2]
[335727128,1724465444184,-500.0,0.00013698,2]
[335727130,1724465444193,-394.47231644,0.00013698,2]
[335727132,1724465444202,-944.35,0.00013698,2]
[335727134,1724465444211,-500.0,0.00013698,2]
[335727136,1724465444220,-500.0,0.00013698,2]
[335727138,1724465444229,-582.02,0.00013698,2]
[335727140,1724465444239,-745.79,0.00013698,2]
[335727142,1724465444247,-500.0,0.00013698,2]
[335727144,1724465444257,-2980.04,0.00013698,2]
[335727146,1724465444267,-500.0,0.00013698,2]
[335727148,1724465444277,-500.0,0.00013698,2]
[335727150,1724465444286,-500.25966525,0.00013698,2]
[335727152,1724465444295,-537.74,0.00013698,2]
[335727154,1724465444304,-724.21,0.00013698,2]
[335727156,1724465444313,-500.0,0.00013698,2]
[335727158,1724465444322,-500.0,0.00013698,2]
[335727160,1724465444331,-500.0,0.00013698,2]
[335727162,1724465444340,-478.95369614,0.00013698,2]
[335727164,1724465444349,-524.82,0.00013698,2]
[335727166,1724465444359,-500.0,0.00013698,2]
[335727168,1724465444368,-1960.93,0.00013698,2]
[335727170,1724465444377,-500.85815529,0.00013698,2]
[335727172,1724465444388,-525.11,0.00013698,2]
[335727174,1724465444397,-1038.03,0.00013698,2]
[335727176,1724465444406,-699.31,0.00013698,2]
[335727178,1724465444416,-500.0,0.00013698,2]
[335727180,1724465444425,-500.0,0.00013698,2]
[335727182,1724465444435,-500.0,0.00013698,2]
[335727184,1724465444445,-985.95,0.00013698,2]
[335727186,1724465444454,-500.0,0.00013698,2]
[335727188,1724465444464,-500.0,0.00013698,2]
[335727190,1724465444473,-500.0,0.00013698,2]
[335727192,1724465444483,-1035.85,0.00013698,2]
[335727194,1724465444493,-305.24911577,0.00013698,2]
[335727196,1724465444502,-599.98714986,0.00013698,2]
[335727198,1724465444512,-500.0,0.00013698,2]
[335727200,1724465444521,-500.0,0.00013698,2]
[335727202,1724465444531,-500.0,0.00013698,2]
[335727204,1724465444540,-705.05,0.00013698,2]
[335727206,1724465444549,-500.0,0.00013698,2]
[335727208,1724465444559,-2268.06,0.00013698,2]
[335727211,1724465444569,-500.0,0.00013698,2]
[335727213,1724465444578,-500.0,0.00013698,2]
[335727215,1724465444587,-500.0,0.00013698,2]
[335727217,1724465444596,-500.0,0.00013698,2]
[335727219,1724465444605,-1294.72,0.00013698,2]
[335727221,1724465444614,-1987.07,0.00013698,2]
[335727223,1724465444624,-2990.31,0.00013698,2]
[335727225,1724465444633,-500.0,0.00013698,2]
[335727227,1724465444643,-671.47,0.00013698,2]
[335727229,1724465444652,-500.0,0.00013698,2]
[335727231,1724465444661,-500.0,0.00013698,2]
[335727233,1724465444670,-742.54,0.00013698,2]
[335727235,1724465444680,-500.0,0.00013698,2]
[335727237,1724465444690,-1101.66,0.00013698,2]
[335727239,1724465444699,-1109.16,0.00013698,2]
[335727241,1724465444709,-500.0,0.00013698,2]
[335727243,1724465444719,-500.0,0.00013698,2]
[335727245,1724465444728,-531.27393272,0.00013698,2]
[335727247,1724465444739,-1201.81,0.00013698,2]
[335727249,1724465444748,-500.0,0.00013698,2]
[335727251,1724465444758,-500.0,0.00013698,2]
[335727253,1724465444767,-500.0,0.00013698,2]
[335727255,1724465444777,-500.0,0.00013698,2]
[335727257,1724465444787,-1150.26,0.00013698,2]
[335727259,1724465444797,-500.0,0.00013698,2]
[335727261,1724465444806,-2256.43,0.00013698,2]
[335727263,1724465444815,-500.0,0.00013698,2]
[335727265,1724465444824,-633.08,0.00013698,2]
[335727267,1724465444833,-524.10641745,0.00013698,2]
[335727269,1724465444843,-500.0,0.00013698,2]
[335727272,1724465444852,-500.0,0.00013698,2]
[335727274,1724465444862,-500.0,0.00013698,2]
[335727276,1724465444871,-500.0,0.00013698,2]
[335727278,1724465444881,-500.0,0.00013698,2]
[335727280,1724465444895,-500.0,0.00013698,2]
[335727282,1724465444904,-500.0,0.00013698,2]
[335727284,1724465444915,-2100.56,0.00013698,2]
[335727286,1724465444924,-879.44,0.00013698,2]
[335727288,1724465444933,-500.0,0.00013698,2]
[335727290,1724465444943,-500.0,0.00013698,2]
[335727292,1724465444953,-500.0,0.00013698,2]
[335727294,1724465444963,-2563.97,0.00013698,2]
[335727296,1724465444972,-557.22,0.00013698,2]
[335727298,1724465444987,-500.0,0.00013698,2]
[335727300,1724465444996,-500.0,0.00013698,2]
[335727302,1724465445005,-500.0,0.00013698,2]
[335727304,1724465445014,-500.0,0.00013698,2]
[335727306,1724465445024,-1527.5,0.00013698,2]
[335727309,1724465445038,-909.36,0.00013698,2]
[335727310,1724465445047,-500.42562593,0.00013698,2]
[335727312,1724465445056,-500.0,0.00013698,2]
[335727314,1724465445066,-500.0,0.00013698,2]
[335727316,1724465445075,-500.0,0.00013698,2]
[335727318,1724465445085,-2016.11,0.00013698,2]
[335727320,1724465445094,-1812.61,0.00013698,2]
[335727321,1724465445103,-964.67,0.00013698,2]
[335727322,1724465445113,-500.0,0.00013698,2]
[335727323,1724465445122,-1545.99,0.00013698,2]
[335727324,1724465445132,-500.0,0.00013698,2]
[335727325,1724465445144,-500.0,0.00013698,2]
[335727326,1724465445154,-500.0,0.00013698,2]
[335727327,1724465445163,-847.37,0.00013698,2]
[335727328,1724465445172,-720.09,0.00013698,2]
[335727329,1724465445182,-730.86,0.00013698,2]
[335727330,1724465445191,-488.94463288,0.00013698,2]
[335727331,1724465445201,-500.96,0.00013698,2]
[335727332,1724465445210,-500.0,0.00013698,2]
[335727333,1724465445219,-500.0,0.00013698,2]
[335727334,1724465445229,-642.45,0.00013698,2]
[335727335,1724465445238,-500.0,0.00013698,2]
[335727336,1724465445248,-500.0,0.00013698,2]
[335727337,1724465445258,-1619.37,0.00013698,2]
[335727338,1724465445267,-501.78015045,0.00013698,2]
[335727339,1724465445276,-500.0,0.00013698,2]
[335727340,1724465445286,-500.0,0.00013698,2]
[335727341,1724465445296,-500.0,0.00013698,2]
[335727342,1724465445306,-443.15499385,0.00013698,2]
[335727343,1724465445315,-500.0,0.00013698,2]
[335727344,1724465445325,-1483.7,0.00013698,2]
[335727345,1724465445334,-500.0,0.00013698,2]
[335727346,1724465445343,-524.40759916,0.00013698,2]
[335727347,1724465445353,-1009.95,0.00013698,2]
[335727348,1724465445362,-617.19,0.00013698,2]
[335727349,1724465445372,-500.0,0.00013698,2]
[335727350,1724465445381,-947.7,0.00013698,2]
[335727351,1724465445396,-1008.29,0.00013698,2]
[335727353,1724465445413,-1135.03,0.00013698,2]
[335727354,1724465445422,-500.0,0.00013698,2]
[335727355,1724465445432,-1573.46,0.00013698,2]
[335727356,1724465445441,-931.88,0.00013698,2]
[335727357,1724465445451,-500.0,0.00013698,2]
[335727358,1724465445460,-500.0,0.00013698,2]
[335727359,1724465445470,-651.24,0.00013698,2]
[335727360,1724465445479,-694.56,0.00013698,2]
[335727361,1724465445490,-500.0,0.00013698,2]
[335727362,1724465445499,-1303.58,0.00013698,2]
[335727363,1724465445509,-504.91863653,0.00013698,2]
[335727364,1724465445519,-1240.47,0.00013698,2]
[335727365,1724465445529,-500.0,0.00013698,2]
[335727366,1724465445539,-4934.13,0.00013698,2]
[335727367,1724465445548,-3800.94,0.00013698,2]
[335727368,1724465445558,-500.0,0.00013698,2]
[335727369,1724465445567,-500.0,0.00013698,2]
[335727370,1724465445576,-668.38,0.00013698,2]
[335727371,1724465445586,-500.0,0.00013698,2]
[335727372,1724465445596,-13086.57,0.00013698,2]
[335727373,1724465445605,-500.0,0.00013698,2]
[335727374,1724465445615,-500.0,0.00013698,2]
[335727375,1724465445624,-642.71,0.00013698,2]
[335727376,1724465445633,-1311.64,0.00013698,2]
[335727377,1724465445646,-672.36,0.00013698,2]
[335727378,1724465445656,-590.28,0.00013698,2]
[335727379,1724465445666,-500.83214915,0.00013698,2]
[335727380,1724465445675,-1262.01,0.00013698,2]
[335727381,1724465445684,-500.0,0.00013698,2]
[335727382,1724465445694,-2068.16,0.00013698,2]
[335727383,1724465445704,-500.0,0.00013698,2]
[335727384,1724465445713,-500.0,0.00013698,2]
[335727385,1724465445722,-500.0,0.00013698,2]
[335727386,1724465445732,-500.0,0.00013698,2]
[335727387,1724465445742,-500.0,0.00013698,2]
[335727388,1724465445751,-500.0,0.00013698,2]
[335727389,1724465445760,-500.0,0.00013698,2]
[335727390,1724465445770,-500.0,0.00013698,2]
[335727391,1724465445779,-1392.41,0.00013698,2]
[335727392,1724465445926,-821.28,0.00013698,2]
[335727393,1724465445938,-500.94363592,0.00013698,2]
[335727394,1724465445947,-1400.46,0.00013698,2]
[335727395,1724465445957,-500.0,0.00013698,2]
[335727396,1724465445967,-900.52,0.00013698,2]
[335727397,1724465445976,-823.21,0.00013698,2]
[335727398,1724465445990,-500.0,0.00013698,2]
[335727399,1724465446000,-500.0,0.00013698,2]
[335727400,1724465446010,-500.61120877,0.00013698,2]
[335727401,1724465446019,-542.46,0.00013698,2]
[335727402,1724465446029,-500.0,0.00013698,2]
[335727403,1724465446038,-500.0,0.00013698,2]
[335727404,1724465446047,-2571.08,0.00013698,2]
[335727405,1724465446057,-1493.1120789,0.00013698,2]
[335727429,1724465446581,-160.93233548,0.00013051,2]
[335727431,1724465446591,-155.04440811,0.00013496,2]
[335727433,1724465446600,-172.49215527,0.00013598,2]
[335727435,1724465446610,-1077.9679211,0.00013698,2]
[335727437,1724465446620,-2571.08,0.00013698,2]
[335727439,1724465446629,-2571.08,0.00013698,2]
[335727441,1724465446640,-504.03413542,0.00013698,2]
[335727443,1724465446649,-500.0,0.00013698,2]
[335727445,1724465446658,-2571.08,0.00013698,2]
[335727447,1724465446668,-2571.08,0.00013698,2]
[335727449,1724465446678,-2571.08,0.00013698,2]
[335727451,1724465446688,-723.75,0.00013698,2]
[335727453,1724465446698,-500.64961572,0.00013698,2]
[335727455,1724465446707,-2571.08,0.00013698,2]
[335727457,1724465446717,-500.0,0.00013698,2]
[335727459,1724465446726,-2571.08,0.00013698,2]
[335727461,1724465446736,-2571.08,0.00013698,2]
[335727463,1724465446745,-2571.08,0.00013698,2]
[335727465,1724465446755,-530.63,0.00013698,2]
[335727467,1724465446764,-2571.08,0.00013698,2]
[335727469,1724465446774,-530.63,0.00013698,2]
[335727472,1724465446783,-2571.08,0.00013698,2]
[335727474,1724465446793,-530.63,0.00013698,2]
[335727476,1724465446803,-530.63,0.00013698,2]
[335727478,1724465446813,-2571.08,0.00013698,2]
[335727480,1724465446823,-2571.08,0.00013698,2]
[335727482,1724465446832,-530.63,0.00013698,2]
[335727484,1724465446842,-2571.08,0.00013698,2]
[335727486,1724465446851,-2571.08,0.00013698,2]